Cogmind - Beta 14 @@@ ROGUE MODE // 2024.08.11 @ 18:25:51 Player: Gitida Result: Destroyed by as-86971 with Assembled Heavy Rifle Performance ------------- Evolutions (0) 0 Regions Visited (2) 400 Robots Destroyed (8) 40 Value Destroyed (191) 191 Prototype IDs (0) 0 Alien Tech Used (0) 0 Bonus (0) 0 TOTAL SCORE: 631 Bonus ------- None Cogmind --------- Core Integrity 0/250 Matter 300/300 Energy 95/100 System Corruption 2% Temperature Cool (63) Movement Core (250) Ox4 Location -10/Mines Parts ------- > --- POWER (1) -------- (None) > --- PROPULSION (2) --- (None) > --- UTILITY (2) ------ Medium Storage Unit > --- WEAPON (2) ------- Spread Laser > --- INVENTORY (10) --- Ion Engine Cooling System Cooling System Cooling System Medium Matter Pod (100) EM Pulse Gun EM Pulse Gun Light Assault Rifle Peak State ------------ > --- POWER ------------ Ion Engine > --- PROPULSION ------- Light Treads Light Treads > --- UTILITY ---------- Small Storage Unit Medium Storage Unit > --- WEAPON ----------- EM Pulse Gun Light Assault Rifle > --- INVENTORY -------- Ion Engine Cooling System Cooling System Cooling System Medium Matter Pod Spread Laser Spread Laser Light Assault Rifle [Rating: 8] Favorites ----------- Power Ion Engine Engine Ion Engine Propulsion Light Treads Treads Light Treads Utility Medium Storage Unit Storage Medium Storage Unit Weapon Light Assault Rifle Energy Gun EM Pulse Gun Ballistic Gun Light Assault Rifle Build | -11 -10 -10 ------- Run | Yrd Mat Min Slots Evolved . | . . . Power . | . . . Propulsion . | . . . Utility . | . . . Weapon . | . . . Parts Attached 10 | 6 2 2 Power 1 | 1 . . Engine 1 | 1 . . Core . | . . . Reactor . | . . . Propulsion 2 | 2 . . Treads 2 | 2 . . Leg . | . . . Wheel . | . . . Hover . | . . . Flight . | . . . Utility 2 | 1 1 . Device . | . . . Storage 2 | 1 1 . Processor . | . . . Hackware . | . . . Protection . | . . . Artifact . | . . . Weapon 5 | 2 1 2 Energy Gun 4 | 1 1 2 Energy Cannon . | . . . Ballistic Gun 1 | 1 . . Ballistic Cannon . | . . . Launcher . | . . . Special Weapon . | . . . Impact Weapon . | . . . Slashing Weapon . | . . . Piercing Weapon . | . . . Special Melee Weapon . | . . . Unidentified Prototypes . | . . . Parts Lost 6 | . 1 5 Power 1 | . . 1 Propulsion 2 | . . 2 Utility . | . . . Weapon 3 | . 1 2 Highest Loss Streak 5 | . 1 5 To Critical Strikes . | . . . Average Slot Usage (%) 83 | . 85 79 Engine 13 | . 14 12 Treads 27 | . 28 24 Storage 14 | . 14 14 Energy Gun 14 | . 14 17 Ballistic Gun 13 | . 14 10 Peak Build Rating 8 | 6 8 8 Average Rating 6 | 4 6 6 On Entrance 4 | . 6 7 Naked Turns . | . . . Heaviest Build 18 | 13 18 18 Greatest Support 40 | 40 40 40 Greatest Overweight (x) 4 | . . 4 Average Overweight (x) . | . . . Largest Inventory Capacity 10 | 8 10 10 Average Capacity 9 | 7 9 10 Most Carried 10 | 2 10 9 Average Carried 6 | 1 7 8 Final Capacity 10 | 8 10 10 Final Carried 9 | 2 9 8 Class Distribution -------------------- 100% | Mutant Dominant Class ---------------- Mutant | -10/Materials Mutant | -10/Mines Resources | -11 -10 -10 ----------- Run | Yrd Mat Min Matter Collected 398 | 196 193 9 Remotely . | . . . Salvage Created 246 | . 183 63 Parts 15 | . 15 . Haulers Intercepted . | . . . Recyclers Shooed 1 | . 1 . Parts Field Recycled . | . . . Retrieved Matter . | . . . Parts Self-Destructed . | . . . Prevented . | . . . Kills | -11 -10 -10 ------- Run | Yrd Mat Min Combat Hostiles Destroyed 10 | . 5 5 Guns 9 | . 4 5 AOE 1 | . 1 . Classes Destroyed 5 | . 4 1 Worker 1 | . 1 . Watcher 2 | . 2 . Swarmer 3 | . 3 . Grunt 2 | . 2 . Assembled 5 | . . 5 Best Kill Streak 5 | . 5 5 Combat Bots Only 5 | . 3 5 Max Kills in Single Turn 1 | . 1 1 Gunslinging . | . . . Exploded 1 | . 1 . Melee . | . . . Uniques/NPCs Destroyed . | . . . Combat | -11 -10 -10 -------- Run | Yrd Mat Min Hostile Shots Fired 62 | . 23 39 Missed 14 | . 6 8 Damage Taken 935 | . 191 744 Core 260 | . 10 250 Absorbed by Shields . | . . . Core Remaining (%) 100 | 100 . . Volleys Fired 36 | . 18 18 Largest 2 | . 2 2 Hottest 130 | . 60 130 Shots Fired 71 | . 35 36 Gun 71 | . 35 36 Cannon . | . . . Launcher . | . . . Special . | . . . Kinetic 32 | . 18 14 Thermal 8 | . . 8 Explosive . | . . . Electromagnetic 31 | . 17 14 Robot Hit Streak 9 | . 8 9 Robot Miss Streak 4 | . 3 4 Penetration Max . | . . . Secondary Targets 2 | . 1 1 Max Gunslinging Chain 1 | . 1 1 Shots Hit Robots 48 | . 18 30 Core Hits 30 | . 11 19 Critical Kills . | . . . Critical Parts Destroyed . | . . . Critical Strikes 2 | . 1 1 Corrupt 2 | . 1 1 Melee Attacks . | . . . Impact . | . . . Slashing . | . . . Piercing . | . . . Sneak Attacks . | . . . Combat Hostiles . | . . . Follow-up Attacks . | . . . Damage Inflicted 687 | . 367 320 Guns 581 | . 261 320 Cannons . | . . . Explosions 103 | . 103 . Melee . | . . . Ramming 3 | . 3 . Kinetic 162 | . 71 91 Thermal 225 | . 103 122 Explosive . | . . . Electromagnetic 297 | . 190 107 Impact . | . . . Slashing . | . . . Piercing . | . . . Highest Corruption 2 | . 1 2 Average Corruption 1 | . 1 1 Corruption Purged . | . . . Corruption Blocked . | . . . Overload Shots . | . . . Overflow Damage . | . . . Projectiles . | . . . Explosions . | . . . Melee . | . . . Knockbacks . | . . . Impact . | . . . Kinetic . | . . . Secondary . | . . . Self-Inflicted Damage 33 | . 33 . Shots 2 | . 2 . Rammed 1 | . 1 . Targets Rammed 1 | . 1 . Kicked . | . . . Crushed . | . . . Highest Temperature 236 | . 60 236 Average Temperature 47 | . 28 65 Received Heat Transfer 42 | . 42 . Siege Activations . | . . . Robots Corrupted . | . . . Combat Hostiles . | . . . Parts Fried . | . . . Impact Corruptions . | . . . Robots Melted . | . . . Combat Hostiles . | . . . Parts Melted . | . . . Heat Transferred 195 | . 50 145 Parts Sabotaged . | . . . Parts Stolen . | . . . Parts Stripped . | . . . Power Chain Reactions 3 | . 3 . Alert | -11 -10 -10 ------- Run | Yrd Mat Min Peak Influence 251 | . 251 97 Initial 97 | . . 97 Average 85 | . 109 88 Maximum Alert Level 1 | . 1 . Low Security (%) 85 | 100 77 100 Level 1 14 | . 22 . Level 2 . | . . . Level 3 . | . . . Level 4 . | . . . Level 5 . | . . . High Security . | . . . Max Security . | . . . Squads Dispatched 2 | . 2 . Investigation 2 | . 2 . Extermination . | . . . Reinforcement . | . . . Assault . | . . . Garrison . | . . . Intercept . | . . . Searches Triggered . | . . . Construction Impeded . | . . . Haulers Reinforced . | . . . Active Scanning Responses . | . . . Cargo Convoy Interrupts . | . . . Stealth | -11 -10 -10 --------- Run | Yrd Mat Min Distress Signals . | . . . Communications Jammed . | . . . Distress Signals . | . . . Times Spotted 32 | . 10 22 Peak Tracking Total 19 | . 5 19 Tactical Retreats 1 | . . 1 Traps | -11 -10 -10 ------- Run | Yrd Mat Min Traps Triggered 2 | . 2 . Indirectly . | . . . Trap Hack Attempts . | . . . Triggered . | . . . Disarmed . | . . . Reprogrammed . | . . . Reused . | . . . Traps Extracted . | . . . Installed . | . . . Triggered . | . . . Machines | -11 -10 -10 ---------- Run | Yrd Mat Min Machines Disabled . | . . . Max in Single Turn . | . . . Machines Repaired . | . . . Machines Dismantled . | . . . Machines Sabotaged 1 | . 1 . Overloaded Fab Kills . | . . . Hacking | -11 -10 -10 --------- Run | Yrd Mat Min Machines Accessed 4 | . 4 . Terminals 4 | . 4 . Fabricators . | . . . Repair Stations . | . . . Recycling Units . | . . . Scanalyzers . | . . . Garrison Access . | . . . Total Hacks 14 | . 14 . Successful 7 | . 7 . Failed 7 | . 7 . Catastrophic . | . . . Database Lockouts . | . . . Manual 8 | . 8 . Terminals 14 | . 14 . Fabricators . | . . . Repair Stations . | . . . Recycling Units . | . . . Scanalyzers . | . . . Garrison Access . | . . . Terminal Hacks 2 | . 2 . Recall Investigation 1 | . 1 . Zone Layout 1 | . 1 . Fabricator Hacks . | . . . Repair Station Hacks . | . . . Recycling Unit Hacks . | . . . Scanalyzer . | . . . Garrison Access Hacks . | . . . Unauthorized Hacks 5 | . 5 . Terminals 5 | . 5 . Track 1 | . 1 . Botnet 3 | . 3 . Sabotage 1 | . 1 . Fabricators . | . . . Repair Stations . | . . . Recycling Units . | . . . Scanalyzers . | . . . Garrison Access . | . . . Data Cores Recovered . | . . . Used . | . . . Hacking Detections 3 | . 3 . Full Trace Events . | . . . Feedback Events . | . . . Feedback Blocked . | . . . Robot Schematics Acquired . | . . . Robots Built . | . . . Authchips . | . . . Time . | . . . Total Robot Build Rating . | . . . Part Schematics Acquired . | . . . Parts Built . | . . . Authchips . | . . . Time . | . . . Total Part Build Rating . | . . . Parts Repaired . | . . . Time . | . . . Parts Recycled . | . . . Recycled Matter . | . . . Retrieved Matter . | . . . Retrieved Components . | . . . Parts Scanalyzed . | . . . Part Schematics Acquired . | . . . Parts Damaged . | . . . Bothacking | -11 -10 -10 ------------ Run | Yrd Mat Min Used RIF Installer . | . . . Robots Hacked . | . . . Non-combat . | . . . Combat . | . . . Robot Hacks Applied . | . . . Relay Couplers Released . | . . . Fabnet Peak Effective % . | . . . Robots Rewired . | . . . Allies Hacked . | . . . Hacks Repelled . | . . . Allies | -11 -10 -10 -------- Run | Yrd Mat Min Total Allies . | . . . Largest Group . | . . . Highest-Rated Group . | . . . Highest-Rated Ally . | . . . Total Orders . | . . . Ally Attacks . | . . . Total Damage . | . . . Kills . | . . . Allies Corrupted . | . . . Allies Melted . | . . . Intel | -11 -10 -10 ------- Run | Yrd Mat Min Robot Analysis Total . | . . . Derelict Logs Recovered . | . . . Drone Launches . | . . . Drone Recoveries . | . . . Exploration | -11 -10 -10 ------------- Run | Yrd Mat Min Turns Passed 496 | 93 322 81 Spaces Moved 231 | 55 160 16 Core 7 | 5 . 2 Treads 224 | 50 160 14 Legs . | . . . Wheels . | . . . Hover . | . . . Flight . | . . . Fastest Speed 50 | 50 160 160 Average Speed 158 | 150 160 171 Slowest Speed 250 | 160 160 250 Overloaded Moves . | . . . Propulsion Burnouts . | . . . Robots Hopped . | . . . Cave-ins Triggered . | . . . Exploration Rate (%) 16 | 4 33 12 Regions Visited 2 Branch Regions 1 Pre-discovered Areas . | . . . Known Exits Taken . | . . . Unknown Exits Taken 2 | 1 1 . Scrap Searched . | . . . Spaces Dug . | . . . Terrain Destroyed 5 | . 5 . Melee . | . . . Projectile . | . . . AOE 5 | . 5 . Terrain Rammed . | . . . Walls Destroyed . | . . . Machines Disabled . | . . . Actions | -11 -10 -10 --------- Run | Yrd Mat Min Total 294 | 63 194 37 Wait 7 | 1 5 1 Move 229 | 54 159 16 Hop . | . . . Pick Up 10 | 2 8 . Fast Attach 7 | 6 1 . Attach 2 | . 1 1 Detach . | . . . Swap 1 | . . 1 Drop 1 | . 1 . Fire 36 | . 18 18 Melee . | . . . Ram . | . . . Kick . | . . . Crush 1 | . 1 . Escape Stasis . | . . . Rewire . | . . . Trap . | . . . Miscellaneous . | . . . Route ------- -11/Scrapyard -10/Materials (discovered 2 exits: [*Mat] / [*Min]) -10/Mines History --------- Turn | Location | Event 5 | -11/Scrapyard | Discovered new exit (range 14) 94 | -11/Scrapyard | Entered Materials 232 | -10/Materials | Discovered new exit (range 3) 301 | -10/Materials | Build established: Mutant 331 | -10/Materials | Discovered new exit (range 9) 416 | -10/Materials | Entered Mines 417 | -10/Mines | Assembled infested the area 493 | -10/Mines | Core integrity fell below 50% 497 | -10/Mines | Core integrity fell below 20% 497 | -10/Mines | Destroyed by as-86971 with Assembled Heavy Rifle Last Messages --------------- 00480_ D-53 Grenadier unfolds itself. 00482_ Ion Engine destroyed. 00484_ as-00379 destroyed. 00484_ Switching to secondary target: as-34123. 00487_ as-34123 destroyed. 00488_ as-92189 destroyed. 00488_ as-90978 destroyed. 00488_ as-17797 destroyed. 00488_ as-34655 destroyed. 00490_ as-49706 destroyed. 00490_ as-71005 destroyed. 00490_ as-74655 destroyed. 00490_ as-69352 destroyed. 00492_ Spread Laser destroyed. 00492_ D-53 Grenadier destroyed. 00493_ Lgt. Treads destroyed. 00494_ Acquired 9 matter. 00494_ Core Extractor disabled. 00496_ as-85523 destroyed. 00496_ as-89791 suffers critical hit (Destroy). Map ----- +----------------------------------------------------+ | ???????????????????????????????????? | | ???????????????????????????????????? | | ???????????????????????????????????? | | ???????????????????????????????????? | | ???????????????????????????????????? | | ???????????????????????????????????? | | ???????????????????????????????????? | | ???????????????????????????????????? | | ????????????????????#??????????????? | | ??????????????????# ##????????????? | | ?????????????????? ##???????????? | | ?????????????????# ###?????????? | | ????????????????? #?????????? | | ????????????????# #????????? | | ????????????#### #????????? | | ?????????#### a #?????????? | | ????????## #a #?????????? | | ????????# = a% #?????????? | | ????????#! ! a % < ##????????? | | ????????## ##???????? | | ????????## a #???????? | | ????????# #???????? | | ????????# d a #???????? | | ????????## #????????? | | ????????# # ####????????? | | ????????# @ ##???#???????????? | | ???????# #????????????????? | | ???????## ""#????????????????? | | ????????## """#????????????????? | | ?????????# """#????????????????? | | ?????????# #????????????????? | | ?????????## #######????????????????? | | ??????????# #??????????????????????? | | ??????????#%#??????????????????????? | | ??????????# ???????????????????????? | | ??????????# ???????????????????????? | | ??????????##???????????????????????? | | ???????????????????????????????????? | | ???????????????????????????????????? | | ???????????????????????????????????? | | ???????????????????????????????????? | | ???????????????????????????????????? | | ???????????????????????????????????? | | ???????????????????????????????????? | | ???????????????????????????????????? | | ???????????????????????????????????? | | ???????????????????????????????????? | | ???????????????????????????????????? | | ???????????????????????????????????? | | ???????????????????????????????????? | +----------------------------------------------------+ Best States ------------- Heat Dissipation 25 Energy Generation 10 Energy Capacity 250 Matter Stores 300 Matter Capacity 300 Sight Range 16 Terrain Scan Density 10 Evasion (%) 40 Recoil Reduction 2 Item Schematics ----------------- None Robot Schematics ------------------ None Fabricated ------------ Nothing Alien Tech Used ----------------- None Achievements -------------- None Challenges ------------ None Game ------ Seed PulseMappingComputer Manual? 0 Play Time 00:06:55 Cumulative 150.6 hours Start 2024.08.11 @ 18:17:06 End 2024.08.11 @ 18:25:51 Sessions 1 Manual Loads 0 Difficulty Rogue Special Mode None Game No. 162 Rogue 162 Adventurer 0 Explorer 0 Win Type - Total 4 Types 3/0/1/0/0/0/0/0/0 Lore% 37 Gallery% 58 Achievement% 54 Wizard Run 0 Options --------- Layout 0 ASCII 0 Keyboard 0 Movement Numpad Keybinds 0 Fullscreen 1 Font 12/Smallcaps Map View 83x54 Zoom Use 0% Tactical HUD 1 Map Filters NONE Filters NONE Steam 1 RUN: 28adbe91-62b6-436a-ba6f-1d8f74d2d61e